bitfinex/quotes_SOLUSD_20240605
["timestamp","ask_amount","ask_price","bid_price","bid_amount"]
[1717560104139,7.15,173.02,173.01,2.1385]
[1717560105713,2.138,173.06,173.02,2.1383]
[1717560105924,24.6269,173.07,173.01,8.5542]
[1717560106141,2.1379,173.07,173.01,12.8313]
[1717560106431,7.15,173.04,173.03,2.1382]
[1717560110746,7.15,173.04,173.02,2.1384]
[1717560111244,7.15,173.03,173.02,2.1384]
[1717560112442,7.15,173.03,173.02,122.1384]
[1717560112620,2.1379,173.07,173.03,2.1383]
[1717560112821,2.1379,173.07,173.04,2.1382]
[1717560113047,7.15,173.05,173.03,2.1382]
[1717560113750,7.15,173.05,173.04,2.1382]
[1717560115142,7.15,173.05,173.03,2.1382]
[1717560115450,2.138,173.06,173.03,2.1382]
[1717560115635,7.15,173.05,173.03,2.1382]
[1717560120375,2.1379,173.07,173.03,2.1382]
[1717560120562,2.1379,173.07,173.04,2.1382]
[1717560120861,2.1377,173.08,173.05,2.1381]
[1717560121062,7.15,173.06,173.05,2.1381]
[1717560121859,7.15,173.06,173.04,120.0]
[1717560121860,7.15,173.06,173.04,122.1381]
[1717560123060,2.1377,173.08,173.05,2.138]
[1717560123239,7.15,173.06,173.05,2.138]
[1717560124457,2.1376,173.09,173.06,2.1379]
[1717560124756,7.15,173.07,173.05,2.138]
[1717560125054,7.15,173.06,173.05,2.138]
[1717560125367,2.1377,173.08,173.05,2.138]
[1717560125661,7.15,173.06,173.05,2.138]
[1717560126332,7.15,173.06,173.04,122.1381]
[1717560126973,7.15,173.05,173.04,122.1381]
[1717560127879,7.15,173.05,173.04,2.1381]
[1717560129268,7.15,173.06,173.05,2.138]
[1717560134866,7.15,173.06,173.02,120.0]
[1717560135180,2.1379,173.07,173.04,2.1382]
[1717560135354,7.15,173.05,173.04,2.1382]
[1717560138447,2.1378,173.08,173.05,2.138]
[1717560138747,7.15,173.06,173.05,2.138]
[1717560142471,27.5729,173.11,173.05,6.4142]
[1717560142472,6.0343,173.11,173.05,6.4142]
[1717560142768,7.15,173.08,173.07,2.1377]
[1717560146983,2.1374,173.11,173.08,2.1377]
[1717560147190,7.15,173.09,173.08,2.1377]
[1717560150354,7.15,173.09,173.04,139.2437]
[1717560150683,7.15,173.09,173.04,2.1382]
[1717560150684,7.15,173.05,173.04,2.1382]
[1717560150860,7.15,173.05,173.03,2.1383]
[1717560151058,31.8279,173.07,173.04,2.1382]
[1717560151361,7.15,173.05,173.04,2.1382]
[1717560154489,7.15,173.05,173.02,2.1384]
[1717560154780,9.2881,173.05,173.02,2.1384]
[1717560155171,7.15,173.03,173.02,2.1384]
[1717560156889,2.1376,173.09,173.06,2.1379]
[1717560157188,22.4392,173.1,173.07,2.1377]
[1717560157390,7.15,173.08,173.07,2.1377]
[1717560157682,2.1374,173.11,173.08,2.1377]
[1717560157904,7.15,173.09,173.07,2.1377]
[1717560158095,2.1374,173.11,173.07,2.1377]
[1717560158096,7.15,173.08,173.07,2.1377]
[1717560158762,7.15,173.08,173.07,32.1377]
[1717560159690,2.1373,173.11,173.08,2.1377]
[1717560160093,7.15,173.1,173.08,2.1377]
[1717560161574,7.15,173.1,173.09,2.1376]
[1717560161989,2.1371,173.13,173.09,2.1376]
[1717560162184,7.15,173.1,173.09,2.1376]
[1717560163469,20.0,173.14,173.09,2.1376]
[1717560163671,7.15,173.1,173.09,2.1376]
[1717560165684,7.15,173.1,173.08,122.1376]
[1717560166388,7.15,173.09,173.07,2.1378]
[1717560166569,7.15,173.08,173.07,2.1378]
[1717560168078,7.15,173.08,173.07,1.97796192]
[1717560169289,7.15,173.08,173.06,2.1379]
[1717560169497,7.15,173.07,173.06,2.1379]
[1717560177297,7.15,173.07,173.06,6.4138]
[1717560177692,7.15,173.08,173.07,2.1378]
[1717560178310,2.1374,173.11,173.08,2.1376]
[1717560178598,20.0,173.14,173.07,4.2756]
[1717560178783,7.15,173.1,173.09,2.1375]
[1717560181604,2.1372,173.12,173.09,2.1375]
[1717560182005,7.15,173.1,173.09,2.1375]
[1717560183004,7.15,173.1,173.08,2.1376]
[1717560183204,7.15,173.09,173.08,2.1376]
[1717560190219,7.15,173.09,173.07,2.1377]
[1717560190387,7.15,173.08,173.07,2.1377]
[1717560195229,2.1374,173.11,173.06,4.2759]
[1717560195230,2.1374,173.11,173.08,2.1376]
[1717560195437,7.15,173.09,173.08,2.1376]
[1717560200445,2.1373,173.12,173.09,2.1375]
[1717560200639,7.15,173.1,173.09,2.1375]
[1717560205318,7.15,173.1,173.08,2.1377]
[1717560205535,7.15,173.09,173.08,2.1377]
[1717560208149,2.1373,173.12,173.09,2.1375]
[1717560208440,7.15,173.1,173.09,2.1375]
[1717560210235,2.1376,173.09,173.06,10.77465596]
[1717560210461,6.1546,173.11,173.07,2.1377]
[1717560210639,7.15,173.08,173.07,2.1377]
[1717560211643,9.2877,173.08,173.06,8.63675596]
[1717560211937,9.2877,173.08,173.06,2.1379]
[1717560211938,7.15,173.08,173.06,2.1379]
[1717560212435,7.15,173.08,173.07,2.1378]
[1717560215537,2.1374,173.11,173.08,2.1377]
[1717560216040,7.15,173.09,173.08,2.1377]
[1717560218042,7.15,173.09,173.06,8.63507068]
[1717560218347,7.15,173.07,173.06,2.1379]
[1717560221650,14.3,173.07,173.05,8.63507068]
[1717560221865,33.4348,173.06,173.03,8.63507068]
[1717560222021,9.2883,173.04,173.02,8.63507068]
[1717560222365,9.2883,173.04,172.99,380.3]
[1717560222366,7.15,173.03,173.0,8.63507068]
[1717560222522,7.15,173.01,173.0,8.63507068]
[1717560222720,7.15,173.01,172.99,382.4388]
[1717560222922,22.0089,173.05,172.98,2.1389]
[1717560222923,7.15,173.0,172.98,2.1389]
[1717560223239,7.15,172.99,172.98,2.1389]
[1717560224049,7.15,172.99,172.97,2.139]
[1717560224350,7.15,172.98,172.97,2.139]
[1717560227122,7.15,172.98,172.96,2.1391]
[1717560227320,6.2144,173.04,172.96,12.8351]
[1717560227523,20.0,173.03,173.0,2.1386]
[1717560227748,20.0,173.03,172.96,14.9741]
[1717560227749,20.0,173.03,172.97,115.37333637]
[1717560227953,7.15,173.0,172.99,2.1387]
[1717560228946,7.15,173.0,172.97,3.5811828]
[1717560229118,2.1387,173.0,172.98,1.44207724]
[1717560229337,7.15,172.99,172.96,2.1391]
[1717560229645,7.15,172.97,172.96,2.1391]
[1717560232043,18.5906,173.02,172.97,2.139]
[1717560232244,7.15,172.98,172.97,2.139]
[1717560235776,2.1385,173.02,172.98,2.1389]
[1717560235978,7.15,172.99,172.98,2.1389]
[1717560240263,2.1385,173.02,172.99,2.1388]
[1717560240463,7.15,173.0,172.98,2.1389]
[1717560240689,7.15,172.99,172.98,2.1389]
[1717560242182,40.9221,173.05,172.97,120.0]
[1717560242183,25.9554,173.05,172.97,120.0]
[1717560242390,25.9554,173.05,173.01,2.1384]
[1717560242391,2.1381,173.05,173.01,2.1384]
[1717560242683,7.15,173.03,173.02,2.1384]
[1717560243687,7.15,173.04,173.03,2.1382]
[1717560243861,2.1376,173.09,173.04,120.0]
[1717560244064,7.15,173.07,173.05,2.138]
[1717560244397,7.15,173.07,173.06,2.1379]
[1717560244969,7.15,173.07,173.05,2.138]
[1717560245168,7.15,173.06,173.05,2.138]
[1717560245679,7.15,173.06,173.0,120.0]
[1717560245894,2.1382,173.04,173.01,2.1385]
[1717560246054,16.3483,173.07,173.03,4.2766]
[1717560246258,6.4681,173.1,173.04,2.1382]
[1717560246454,7.15,173.05,173.04,2.1382]
[1717560246675,7.15,173.05,173.03,2.1382]
[1717560248597,7.15,173.04,173.03,2.1382]
[1717560250176,7.15,173.04,173.02,2.1384]
[1717560250678,7.15,173.03,173.02,2.1384]
[1717560251183,7.15,173.03,172.98,380.3]
[1717560251379,7.15,172.99,172.98,382.4389]
[1717560251568,7.15,172.99,172.98,2.1389]
[1717560252588,7.15,172.99,172.96,2.1391]
[1717560252780,7.15,172.97,172.92,4.2792]
[1717560252992,7.15,172.93,172.92,2.1396]
[1717560253187,7.15,172.93,172.92,6.419]
[1717560254074,7.15,172.94,172.93,2.1395]
[1717560254279,24.1939,173.0,172.94,124.2789]
[1717560254480,24.1939,173.0,172.96,2.1391]
[1717560254664,7.15,172.97,172.96,2.1391]
[1717560255264,2.1384,173.03,172.99,2.1388]
[1717560255513,7.15,173.0,172.98,2.1389]
[1717560255881,7.15,172.99,172.98,2.1389]
[1717560257782,2.1384,173.03,172.99,2.1387]
[1717560257983,7.15,173.0,172.99,2.1387]
[1717560258575,7.15,173.01,172.99,2.1387]
[1717560259795,7.15,173.0,172.99,2.1387]
[1717560259974,7.15,173.0,172.98,2.1388]
[1717560260795,7.15,173.0,172.99,2.1388]
[1717560267012,7.15,173.0,172.98,2.1389]
[1717560267308,7.15,172.99,172.96,2.1391]
[1717560267490,2.1388,173.0,172.96,2.1391]
[1717560267491,7.15,172.97,172.96,2.1391]
[1717560267884,7.15,172.97,172.91,500.3]
[1717560268193,7.15,172.97,172.92,1.52145512]
[1717560268194,7.15,172.93,172.92,1.52145512]
[1717560268397,7.15,172.93,172.92,2.1397]
[1717560272791,7.15,172.93,172.86,8.5614]
[1717560272792,29.3103,172.93,172.86,8.5614]
[1717560273012,2.1397,172.92,172.88,2.1401]
[1717560273304,7.15,172.89,172.85,130.7026]
[1717560273609,2.1397,172.92,172.88,2.1402]
[1717560273906,7.15,172.89,172.88,2.1402]
[1717560274280,7.15,172.89,172.87,2.1402]
[1717560274489,7.15,172.88,172.87,2.1402]
[1717560274891,7.15,172.89,172.86,4.2808]
[1717560275101,7.15,172.89,172.88,2.1402]
[1717560275610,21.7174,172.97,172.91,2.1398]
[1717560275911,7.15,172.92,172.91,2.1398]
[1717560276101,7.15,172.92,172.91,2.1397]
[1717560288125,7.15,172.93,172.92,120.0]
[1717560288711,7.15,172.93,172.91,2.1397]
[1717560293223,7.15,172.93,172.92,120.0]
[1717560301028,9.2896,172.93,172.9,2.1399]
[1717560301400,10.6961,172.96,172.9,2.1399]
[1717560301401,7.15,172.91,172.9,2.1399]
[1717560302123,7.15,172.91,172.89,2.14]
[1717560302329,7.15,172.9,172.89,2.14]
[1717560306922,7.15,172.9,172.87,2.1402]
[1717560307105,9.29,172.9,172.86,2.1404]
[1717560307303,7.15,172.87,172.86,2.1404]
[1717560308107,2.1404,172.86,172.83,382.4408]
[1717560308306,7.15,172.84,172.83,382.4408]
[1717560309011,7.15,172.84,172.83,380.3]
[1717560309217,7.15,172.84,172.83,382.4408]
[1717560310925,7.15,172.84,172.83,380.3]
[1717560311429,7.15,172.84,172.82,2.1409]
[1717560311634,7.15,172.83,172.82,382.4409]
[1717560313528,7.15,172.83,172.82,380.3]
[1717560314311,7.15,172.83,172.82,382.4409]
[1717560315834,7.15,172.83,172.82,380.3]
[1717560316805,9.2908,172.83,172.82,380.3]
[1717560317731,29.2908,172.83,172.82,380.3]
[1717560317935,22.7629,172.82,172.78,0.813692]
[1717560318241,9.2913,172.79,172.78,0.813692]
[1717560320944,32.2466,172.79,172.78,0.813692]
[1717560321150,32.2466,172.79,172.74,0.03600424]
[1717560321151,2.1417,172.76,172.74,0.03600424]
[1717560321335,7.15,172.75,172.74,0.03600424]
[1717560321516,2.1417,172.76,172.74,0.03600424]
[1717560321840,7.15,172.75,172.74,0.03600424]
[1717560325229,2.1417,172.76,172.74,0.03600424]
[1717560325422,7.15,172.75,172.74,0.03600424]
[1717560329235,9.2918,172.75,172.74,0.03600424]
[1717560330254,55.1022,172.75,172.74,0.03600424]
[1717560330584,2.1424,172.7,172.66,2.1428]
[1717560330747,7.15,172.67,172.66,2.1428]
[1717560332530,7.15,172.67,172.63,19.289]
[1717560332531,2.1425,172.7,172.67,2.1427]
[1717560332718,7.15,172.68,172.67,2.1427]
[1717560334143,7.15,172.68,172.67,2.1428]
[1717560334323,7.15,172.68,172.66,2.1429]
[1717560335320,2.1425,172.7,172.66,2.1429]
[1717560335842,7.15,172.67,172.66,2.1429]
[1717560337144,7.15,172.67,172.64,2.1431]
[1717560337353,7.15,172.65,172.64,2.1431]
[1717560337848,2.1426,172.69,172.63,10.7163]
[1717560338073,2.1423,172.71,172.65,4.286]
[1717560338345,7.15,172.68,172.67,2.1427]
[1717560338546,28.6,172.8,172.69,2.1424]
[1717560338547,7.15,172.7,172.69,2.1424]
[1717560338728,2.142,172.74,172.68,10.7133]
[1717560338931,7.15,172.71,172.7,2.1424]
[1717560339142,4.283,172.78,172.7,10.7121]
[1717560339446,12.457,172.79,172.72,2.1421]
[1717560339447,7.15,172.73,172.72,2.1421]
[1717560339645,7.15,172.73,172.7,4.2848]
[1717560339838,7.15,172.72,172.71,2.1422]
[1717560342465,7.15,172.68,172.67,2.1427]
[1717560347063,7.15,172.69,172.68,2.1425]
[1717560347643,2.1422,172.72,172.69,2.1425]
[1717560347867,2.1419,172.74,172.71,2.1422]
[1717560348166,2.1419,172.74,172.7,2.1423]
[1717560348368,7.15,172.72,172.7,2.1423]
[1717560348542,7.15,172.71,172.7,2.1423]
[1717560349247,7.15,172.71,172.69,2.1425]
[1717560349463,2.1422,172.72,172.69,2.1425]
[1717560349464,7.15,172.7,172.69,2.1425]
[1717560350351,7.15,172.7,172.68,2.1426]
[1717560350538,7.15,172.69,172.68,2.1426]
[1717560353274,7.15,172.69,172.67,2.1427]
[1717560353449,7.15,172.68,172.67,2.1427]
[1717560353650,9.2927,172.68,172.65,382.4429]
[1717560353872,7.15,172.66,172.65,382.4429]
[1717560354074,7.15,172.66,172.65,380.3]
[1717560355151,7.15,172.66,172.65,382.443]
[1717560355777,7.15,172.66,172.65,380.3]
[1717560360246,7.15,172.66,172.65,382.443]
[1717560360685,2.1427,172.68,172.65,380.3]
[1717560360869,7.15,172.66,172.65,380.3]
[1717560361054,7.15,172.66,172.65,382.443]
[1717560363167,7.15,172.66,172.65,380.3]
[1717560363779,7.15,172.66,172.65,382.443]
[1717560363952,7.15,172.66,172.65,380.3]
[1717560364362,7.15,172.66,172.65,382.443]
[1717560364984,8.5681,172.74,172.65,380.3]
[1717560365151,14.9941,172.74,172.66,4.2856]
[1717560365356,2.1422,172.72,172.69,2.1425]
[1717560365557,7.15,172.7,172.69,2.1425]
[1717560365780,7.15,172.7,172.68,2.1426]
[1717560365970,7.15,172.7,172.65,393.1577]
[1717560365971,7.15,172.69,172.67,2.1427]
[1717560366169,7.15,172.68,172.67,2.1427]
[1717560366379,7.15,172.68,172.66,2.1428]
[1717560366570,7.15,172.67,172.66,2.1428]
[1717560370185,9.2923,172.71,172.65,391.0151]
[1717560370384,7.15,172.67,172.66,2.1429]
[1717560372183,7.15,172.67,172.65,382.443]
[1717560372394,7.15,172.66,172.65,382.443]
[1717560373686,2.1426,172.69,172.66,2.1429]
[1717560373892,7.15,172.67,172.66,2.1429]
[1717560376095,7.15,172.67,172.65,382.4429]
[1717560376395,7.15,172.66,172.65,382.4429]
[1717560376766,7.15,172.66,172.65,380.3]
[1717560377500,7.15,172.66,172.65,382.443]
[1717560379985,2.1426,172.69,172.66,2.1429]
[1717560380191,7.15,172.67,172.66,2.1429]
[1717560381597,7.15,172.67,172.65,382.4429]
[1717560381767,7.15,172.66,172.65,382.4429]
[1717560382603,2.1426,172.69,172.65,382.4429]
[1717560382604,2.1426,172.69,172.66,2.1428]
[1717560382773,22.1425,172.7,172.67,2.1428]
[1717560383190,7.15,172.68,172.67,2.1428]
[1717560384266,2.1424,172.7,172.67,2.1428]
[1717560384472,7.15,172.68,172.67,2.1428]
[1717560384674,4.2839,172.74,172.66,8.5716]
[1717560384983,7.15,172.7,172.67,5.81305786]
[1717560385181,10.7097,172.74,172.68,2.1426]
[1717560385182,7.15,172.69,172.68,2.1426]
[1717560391580,2.142,172.74,172.7,2.1423]
[1717560391787,7.15,172.71,172.7,2.1423]
[1717560395196,7.15,172.71,172.69,2.1424]
[1717560395381,2.1422,172.72,172.69,2.1424]
[1717560395382,7.15,172.7,172.69,2.1424]
[1717560397206,7.15,172.7,172.68,2.1426]
[1717560397384,7.15,172.69,172.68,2.1426]
[1717560398192,7.15,172.69,172.64,4.2862]
[1717560398394,11.4346,172.71,172.66,2.1428]
[1717560398580,7.15,172.67,172.66,2.1428]
[1717560399806,7.15,172.67,172.61,0.813692]
[1717560399807,2.1429,172.66,172.61,0.813692]
[1717560399981,2.1428,172.67,172.63,2.1432]
[1717560400186,7.15,172.64,172.63,2.1432]
[1717560401112,2.1428,172.67,172.64,2.1431]
[1717560401290,7.15,172.65,172.62,2.1433]
[1717560401607,7.15,172.63,172.62,2.1433]
[1717560401813,7.15,172.63,172.62,3.6707192]
[1717560403520,2.1429,172.66,172.62,3.6707192]
[1717560403811,2.1428,172.67,172.63,2.1433]
[1717560403999,7.15,172.64,172.63,2.1433]
[1717560404514,7.15,172.64,172.62,2.1433]
[1717560404802,7.15,172.63,172.62,2.1433]
[1717560405014,7.15,172.63,172.62,3.67070516]
[1717560405652,2.1428,172.67,172.63,2.1432]
[1717560405791,7.15,172.64,172.63,2.1432]
[1717560405987,7.15,172.65,172.63,2.1432]
[1717560406316,7.15,172.65,172.64,2.1431]
[1717560407792,7.15,172.65,172.64,3.6701879]
[1717560407988,7.15,172.65,172.64,1.5270879]
[1717560408201,7.15,172.65,172.64,3.6701879]
[1717560408408,7.15,172.65,172.64,2.1431]
[1717560408712,7.15,172.65,172.63,2.1432]
[1717560408909,2.1428,172.67,172.64,2.1431]
[1717560409100,7.15,172.65,172.64,2.1431]
[1717560409302,7.15,172.65,172.64,3.67016003]
[1717560410917,7.15,172.65,172.64,1.52706003]
[1717560411419,7.15,172.65,172.63,2.1432]
[1717560412197,7.15,172.65,172.62,2.1433]
[1717560412408,7.15,172.64,172.63,1.52728951]
[1717560412721,24.2853,172.68,172.61,0.813692]
[1717560412722,2.143,172.65,172.61,0.813692]
[1717560413018,7.15,172.63,172.62,1.52736134]
[1717560413222,7.15,172.63,172.62,3.67076134]
[1717560414426,7.15,172.63,172.62,2.1434]
[1717560414719,7.15,172.63,172.61,0.813692]
[1717560414922,7.15,172.62,172.61,0.813692]
[1717560415094,7.15,172.62,172.61,4.48463257]
[1717560415500,7.15,172.62,172.61,2.34113257]
[1717560416329,7.15,172.62,172.61,0.813692]
[1717560423230,9.2934,172.62,172.61,0.813692]
[1717560424639,49.7002,172.62,172.61,0.813692]
[1717560424842,63.2699,172.62,172.61,0.813692]
[1717560425017,69.7002,172.62,172.61,0.813692]
[1717560425215,63.2699,172.62,172.61,0.813692]
[1717560425439,78.2739,172.62,172.61,0.813692]
[1717560426422,99.7239,172.62,172.61,0.813692]
[1717560427910,22.1434,172.62,172.61,0.813692]
[1717560428110,29.2934,172.62,172.61,0.813692]
[1717560428310,27.15,172.62,172.61,0.813692]
[1717560428551,9.2934,172.62,172.61,0.813692]
[1717560428722,2.1431,172.65,172.61,2.957092]
[1717560428915,7.15,172.63,172.61,0.813692]
[1717560429121,2.1429,172.66,172.62,2.1433]
[1717560429362,7.15,172.64,172.62,2.1433]
[1717560429515,2.1431,172.64,172.61,0.813692]
[1717560429721,7.15,172.62,172.61,2.957192]
[1717560430037,7.15,172.62,172.61,0.813692]
[1717560430521,7.15,172.62,172.61,2.957192]
[1717560431130,2.1431,172.65,172.62,2.1434]
[1717560431640,7.15,172.63,172.61,2.957092]
[1717560431830,7.15,172.62,172.61,2.957092]
[1717560434421,2.1432,172.64,172.61,2.957092]
[1717560434627,7.15,172.62,172.61,0.813692]
[1717560435659,7.15,172.62,172.61,2.957192]
[1717560436145,2.1429,172.66,172.62,2.1433]
[1717560436352,27.0373,172.68,172.61,0.813692]
[1717560436643,20.0,172.67,172.64,2.143]
[1717560436847,7.15,172.65,172.64,2.143]
[1717560437035,7.15,172.65,172.63,2.1432]
[1717560437221,22.1428,172.67,172.63,2.1432]
[1717560437222,7.15,172.64,172.63,2.1432]
[1717560437736,7.15,172.64,172.62,2.1433]
[1717560438053,2.1429,172.66,172.63,2.1433]
[1717560438354,7.15,172.64,172.63,2.1433]
[1717560439636,2.1429,172.66,172.63,2.1433]
[1717560439856,7.15,172.64,172.63,2.1433]
[1717560440862,21.7584,172.71,172.64,4.2861]
[1717560441027,7.15,172.69,172.65,124.286]
[1717560441340,7.15,172.69,172.68,2.1426]
[1717560441959,2.1422,172.72,172.66,4.2858]
[1717560442133,7.15,172.71,172.69,2.1424]
[1717560442537,8.7739,172.75,172.71,2.1422]
[1717560442853,2.1419,172.74,172.7,2.1423]
[1717560443177,7.15,172.72,172.69,2.1425]
[1717560443358,7.15,172.71,172.69,2.1425]
[1717560444267,7.15,172.71,172.67,124.2855]
[1717560444433,7.15,172.71,172.69,2.1425]
[1717560446748,7.15,172.72,172.69,2.1425]
[1717560446952,7.15,172.72,172.68,2.1426]
[1717560447153,7.15,172.72,172.67,124.2855]
[1717560447358,7.15,172.71,172.67,124.2855]
[1717560447740,12.8498,172.77,172.7,2.1423]
[1717560447946,7.15,172.72,172.67,120.0]
[1717560448139,7.15,172.72,172.69,2.1425]
[1717560448346,7.15,172.71,172.69,2.1425]
[1717560448669,7.15,172.72,172.7,2.1424]
[1717560449261,2.142,172.74,172.7,2.1424]
[1717560449460,7.15,172.72,172.69,2.1425]
[1717560450540,7.15,172.71,172.69,2.1425]
[1717560451039,7.15,172.7,172.68,2.1426]
[1717560451242,7.15,172.69,172.68,2.1426]
[1717560451859,2.1421,172.73,172.69,2.1425]
[1717560452167,7.15,172.7,172.69,2.1425]
[1717560452955,7.15,172.7,172.68,2.1426]
[1717560453157,7.15,172.69,172.68,2.1426]
[1717560453472,2.1421,172.73,172.68,2.1426]
[1717560453779,26.2261,172.75,172.69,2.1425]
[1717560453980,2.1419,172.74,172.7,2.1424]
[1717560454153,7.15,172.71,172.7,2.1424]
[1717560455253,2.1419,172.74,172.69,2.1425]
[1717560455673,7.15,172.71,172.69,2.1425]
[1717560456478,2.1419,172.74,172.7,2.1424]
[1717560456655,7.15,172.71,172.7,2.1424]
[1717560457364,2.1417,172.76,172.72,2.1421]
[1717560457676,7.15,172.74,172.72,2.1421]
[1717560458050,7.15,172.74,172.71,2.1422]
[1717560458259,7.15,172.73,172.71,2.1422]
[1717560459357,7.15,172.73,172.7,2.1423]
[1717560459672,7.15,172.72,172.7,2.1423]
[1717560460180,2.1419,172.74,172.7,2.1423]
[1717560460379,7.15,172.71,172.7,2.1423]
[1717560460696,7.15,172.72,172.69,4.285]
[1717560460846,7.15,172.72,172.71,2.1422]
[1717560461045,7.15,172.72,172.7,2.1423]
[1717560461578,7.15,172.72,172.71,2.1423]
[1717560462388,2.1419,172.75,172.71,2.1423]
[1717560462575,2.1417,172.76,172.72,2.1421]
[1717560462888,7.15,172.73,172.72,2.1421]
[1717560464281,7.15,172.73,172.71,2.1422]
[1717560468288,7.15,172.72,172.7,2.1423]
[1717560468463,7.15,172.71,172.7,2.1423]
[1717560469081,7.15,172.71,172.69,2.1425]
[1717560469383,7.15,172.7,172.69,2.1425]
[1717560471602,2.142,172.74,172.69,2.1425]
[1717560471777,22.142,172.74,172.7,2.1424]
[1717560471977,7.15,172.71,172.7,2.1424]
[1717560472981,7.15,172.71,172.69,2.1425]
[1717560473297,7.15,172.7,172.66,4.2858]
[1717560473502,7.15,172.69,172.68,2.1426]
[1717560473699,7.15,172.7,172.69,2.1425]
[1717560474272,7.15,172.71,172.7,2.1424]
[1717560476174,7.15,172.71,172.67,10.7137]
[1717560476175,7.15,172.71,172.69,2.1424]
[1717560477292,7.15,172.7,172.69,2.1424]
[1717560478112,2.142,172.73,172.69,2.1424]
[1717560478415,7.15,172.7,172.69,2.1424]
[1717560482275,22.142,172.74,172.7,2.1423]
[1717560482481,7.15,172.71,172.7,2.1423]
[1717560482982,22.1419,172.75,172.68,10.7133]
[1717560483293,7.15,172.74,172.7,10.7121]
[1717560483806,7.15,172.74,172.72,2.1421]
[1717560483981,2.1417,172.76,172.72,2.1421]
[1717560484307,7.15,172.73,172.72,2.1421]
[1717560484814,2.1417,172.76,172.72,2.1421]
[1717560485010,7.15,172.73,172.72,2.1421]
[1717560485199,7.15,172.73,172.71,2.1422]
[1717560485500,7.15,172.72,172.71,2.1422]
[1717560487786,2.1417,172.76,172.72,2.1421]
[1717560488188,7.15,172.73,172.72,2.1421]
[1717560488601,7.15,172.73,172.71,2.1422]
[1717560488794,2.1417,172.76,172.72,2.1421]
[1717560489013,7.15,172.73,172.72,2.1421]
[1717560490691,2.1417,172.76,172.72,2.1421]
[1717560490886,7.15,172.73,172.72,2.1421]
[1717560492608,7.15,172.73,172.71,2.1422]
[1717560494493,7.15,172.72,172.71,2.1422]
[1717560494688,7.15,172.72,172.69,2.1425]
[1717560494888,7.15,172.7,172.68,2.1426]
[1717560495091,7.15,172.69,172.67,2.1428]
[1717560495620,7.15,172.69,172.67,2.1427]
[1717560495919,7.15,172.68,172.67,2.1427]
[1717560496287,7.15,172.68,172.65,2.1429]
[1717560496486,7.15,172.66,172.65,2.1429]
[1717560496722,7.15,172.66,172.63,2.1432]
[1717560496891,7.15,172.64,172.63,2.1432]
[1717560500217,2.1427,172.68,172.64,2.1431]
[1717560500512,7.15,172.65,172.64,2.1431]